[Event "*** Titled Tuesday Blitz AM"]
[Site "Chess.com"]
[Date "2020.01.07"]
[Round "2"]
[White "kleinebeer98"]
[Black "Parhamov"]
[Result "0-1"]
[WhiteElo "2671"]
[BlackElo "3057"]
[TimeControl "180+2"]
[EndTime "9:24:40 PST"]
[Termination "Parhamov won by resignation"]

1. e4 {[%clk 0:03:01.9]} 1... e5 {[%clk 0:03:01]} 2. Nf3 {[%clk 0:03:01.3]} 2...
Nc6 {[%clk 0:03:02.6]} 3. d4 {[%clk 0:02:59.6]} 3... exd4 {[%clk 0:03:02.9]} 4.
c3 {[%clk 0:03:00.4]} 4... Nf6 {[%clk 0:03:02.5]} 5. e5 {[%clk 0:03:00.6]} 5...
Ne4 {[%clk 0:03:03.8]} 6. Bd3 {[%clk 0:02:50.6]} 6... d5 {[%clk 0:03:02.7]} 7.
exd6 {[%clk 0:02:44.1]} 7... Nxd6 {[%clk 0:02:59.6]} 8. cxd4 {[%clk 0:02:41]}
8... Be7 {[%clk 0:03:00.5]} 9. O-O {[%clk 0:02:41.3]} 9... Nf5 {[%clk
0:02:58.5]} 10. Bxf5 {[%clk 0:02:34.9]} 10... Bxf5 {[%clk 0:03:00.4]} 11. d5
{[%clk 0:02:36.8]} 11... Nb4 {[%clk 0:03:01.1]} 12. Nc3 {[%clk 0:02:36]} 12...
O-O {[%clk 0:02:57.8]} 13. Bf4 {[%clk 0:02:28.6]} 13... Re8 {[%clk 0:02:59.1]}
14. Nd4 {[%clk 0:02:17.6]} 14... Bg6 {[%clk 0:02:59.6]} 15. Ndb5 {[%clk
0:02:17.4]} 15... Bd6 {[%clk 0:02:59.7]} 16. Nxd6 {[%clk 0:02:17.4]} 16... cxd6
{[%clk 0:03:01.6]} 17. Nb5 {[%clk 0:02:16.9]} 17... Qf6 {[%clk 0:02:55.3]} 18.
Bg3 {[%clk 0:01:55.7]} 18... Bd3 {[%clk 0:02:54.9]} 19. Nxd6 {[%clk 0:01:53.8]}
19... Bxf1 {[%clk 0:02:42.8]} 20. Nxe8 {[%clk 0:01:53.7]} 20... Rxe8 {[%clk
0:02:44.7]} 21. Qxf1 {[%clk 0:01:51.7]} 21... Nxd5 {[%clk 0:02:42.3]} 22. Rd1
{[%clk 0:01:49]} 22... Qe6 {[%clk 0:02:38]} 23. h3 {[%clk 0:01:48.8]} 23... a6
{[%clk 0:02:35]} 24. Qc4 {[%clk 0:01:47]} 24... Nf6 {[%clk 0:02:36.2]} 25. Qc7
{[%clk 0:01:42.6]} 25... b5 {[%clk 0:02:32.8]} 26. Qa5 {[%clk 0:01:34.7]} 26...
h6 {[%clk 0:02:32.1]} 27. Kh2 {[%clk 0:01:34.6]} 27... Ne4 {[%clk 0:02:29.7]}
28. Re1 {[%clk 0:01:33.5]} 28... Qc6 {[%clk 0:02:27.7]} 29. Qb4 {[%clk
0:01:28.5]} 29... Re6 {[%clk 0:02:26.6]} 30. a3 {[%clk 0:01:19.9]} 30... Qd5
{[%clk 0:02:23.2]} 31. Qa5 {[%clk 0:01:07.2]} 31... Kh7 {[%clk 0:02:16]} 32. Qb4
{[%clk 0:00:51.3]} 32... h5 {[%clk 0:02:14.8]} 33. Re3 {[%clk 0:00:49]} 33...
Nf6 {[%clk 0:02:03.9]} 34. Rxe6 {[%clk 0:00:49.3]} 34... Qxe6 {[%clk 0:02:04.9]}
35. Qd4 {[%clk 0:00:48.8]} 35... g5 {[%clk 0:02:04.1]} 36. Be5 {[%clk
0:00:48.6]} 36... Nd5 {[%clk 0:02:04.7]} 37. Qe4+ {[%clk 0:00:43.8]} 37... Kh6
{[%clk 0:02:03.3]} 38. Qd4 {[%clk 0:00:38.1]} 38... f6 {[%clk 0:02:04]} 39. Bb8
{[%clk 0:00:37.4]} 39... h4 {[%clk 0:02:05.3]} 40. a4 {[%clk 0:00:36.2]} 40...
bxa4 {[%clk 0:02:02.6]} 41. Qxa4 {[%clk 0:00:38.1]} 41... Kg6 {[%clk 0:01:57.4]}
42. Qc2+ {[%clk 0:00:37.1]} 42... Kg7 {[%clk 0:01:57.7]} 43. Qc5 {[%clk
0:00:33]} 43... Qb6 {[%clk 0:01:54.3]} 44. Qc8 {[%clk 0:00:28.5]} 44... Ne7
{[%clk 0:01:43.9]} 45. Qe8 {[%clk 0:00:26.1]} 45... Ng6 {[%clk 0:01:43.3]} 46.
Qd7+ {[%clk 0:00:20.8]} 46... Kh6 {[%clk 0:01:44.5]} 47. Ba7 {[%clk 0:00:21.4]}
47... Qxb2 {[%clk 0:01:43.5]} 48. Bd4 {[%clk 0:00:22.5]} 48... Qd2 {[%clk
0:01:40.1]} 49. Qd8 {[%clk 0:00:19.3]} 49... a5 {[%clk 0:01:38.4]} 50. Qxf6
{[%clk 0:00:16.6]} 50... Qf4+ {[%clk 0:01:39.6]} 51. Qxf4 {[%clk 0:00:18]} 51...
gxf4 {[%clk 0:01:28.7]} 52. g3 {[%clk 0:00:19.9]} 52... Kg5 {[%clk 0:01:27.4]}
53. Kg2 {[%clk 0:00:18.8]} 53... Kf5 {[%clk 0:01:25.6]} 54. Bb2 {[%clk
0:00:13.7]} 54... Ke4 {[%clk 0:01:23.9]} 55. gxf4 {[%clk 0:00:12.5]} 55... Nxf4+
{[%clk 0:01:24.8]} 56. Kh2 {[%clk 0:00:13.5]} 56... a4 {[%clk 0:01:23.4]} 57.
Bf6 {[%clk 0:00:13.7]} 57... Ng6 {[%clk 0:01:16.1]} 58. Kg2 {[%clk 0:00:13.6]}
58... a3 {[%clk 0:01:14.3]} 59. Ba1 {[%clk 0:00:13.7]} 59... Nf4+ {[%clk
0:01:14.3]} 60. Kh2 {[%clk 0:00:13.4]} 60... a2 {[%clk 0:01:14.4]} 61. Bh8
{[%clk 0:00:11.7]} 61... Nd3 {[%clk 0:01:14.6]} 62. Ba1 {[%clk 0:00:08.5]} 62...
Ne1 {[%clk 0:01:11.7]} 63. Kg1 {[%clk 0:00:05.9]} 63... Kf3 {[%clk 0:01:11.7]}
64. Kh2 {[%clk 0:00:03.8]} 64... Nc2 {[%clk 0:01:12.9]} 65. Bb2 {[%clk
0:00:02.9]} 65... a1=Q {[%clk 0:01:14.2]} 66. Bc1 {[%clk 0:00:04.8]} 66... Qe5+
{[%clk 0:01:14.6]} 67. Kg1 {[%clk 0:00:04.3]} 67... Qe1+ {[%clk 0:01:16]} 68.
Kh2 {[%clk 0:00:06.2]} 0-1

[Event "*** Titled Tuesday Blitz AM"]
[Site "Chess.com"]
[Date "2020.01.07"]
[Round "2"]
[White "yy2324"]
[Black "GMBenjaminBok"]
[Result "0-1"]
[WhiteElo "2556"]
[BlackElo "2890"]
[TimeControl "180+2"]
[EndTime "9:24:47 PST"]
[Termination "GMBenjaminBok won by resignation"]

1. e4 {[%clk 0:03:01.8]} 1... c5 {[%clk 0:03:00.9]} 2. Nf3 {[%clk 0:03:02.8]}
2... d6 {[%clk 0:03:02.5]} 3. d4 {[%clk 0:03:03.9]} 3... cxd4 {[%clk 0:03:04.4]}
4. Nxd4 {[%clk 0:03:05.4]} 4... Nf6 {[%clk 0:03:06.1]} 5. Nc3 {[%clk 0:03:06.7]}
5... a6 {[%clk 0:03:07.8]} 6. Be3 {[%clk 0:03:07.7]} 6... e5 {[%clk 0:03:08.6]}
7. Nb3 {[%clk 0:03:09.1]} 7... Be6 {[%clk 0:03:09.7]} 8. f3 {[%clk 0:03:09.9]}
8... Be7 {[%clk 0:03:10.8]} 9. Qd2 {[%clk 0:03:11.2]} 9... O-O {[%clk
0:03:12.4]} 10. O-O-O {[%clk 0:03:12.4]} 10... Nbd7 {[%clk 0:03:14]} 11. g4
{[%clk 0:03:12.2]} 11... b5 {[%clk 0:03:15.6]} 12. g5 {[%clk 0:03:13]} 12... Nh5
{[%clk 0:03:16.8]} 13. Nd5 {[%clk 0:03:13.1]} 13... Bxd5 {[%clk 0:03:17.4]} 14.
exd5 {[%clk 0:03:14.6]} 14... f6 {[%clk 0:03:18.6]} 15. gxf6 {[%clk 0:03:13.3]}
15... Bxf6 {[%clk 0:03:19.4]} 16. Na5 {[%clk 0:03:13.8]} 16... Nb6 {[%clk
0:03:09.6]} 17. Nc6 {[%clk 0:03:11.5]} 17... Qc7 {[%clk 0:03:10.6]} 18. Qa5
{[%clk 0:02:54.2]} 18... Nxd5 {[%clk 0:02:52.1]} 19. Qxc7 {[%clk 0:02:53.8]}
19... Nxc7 {[%clk 0:02:54]} 20. Rxd6 {[%clk 0:02:55.2]} 20... Nf4 {[%clk
0:02:47.3]} 21. Bxf4 {[%clk 0:02:41.3]} 21... exf4 {[%clk 0:02:49.2]} 22. Bd3
{[%clk 0:02:42.7]} 22... Rae8 {[%clk 0:02:46.2]} 23. Be4 {[%clk 0:02:29.5]}
23... Kh8 {[%clk 0:02:43.1]} 24. Rhd1 {[%clk 0:02:26.6]} 24... Ne6 {[%clk
0:02:42.5]} 25. Nb4 {[%clk 0:02:12.8]} 25... Ng5 {[%clk 0:02:39.5]} 26. Bc6
{[%clk 0:02:01.3]} 26... Re2 {[%clk 0:02:18]} 27. R6d2 {[%clk 0:01:41.9]} 27...
Rxd2 {[%clk 0:02:03]} 28. Rxd2 {[%clk 0:01:41.3]} 28... a5 {[%clk 0:02:04.2]}
29. Nd3 {[%clk 0:01:35]} 29... Bd4 {[%clk 0:02:04.1]} 30. Rg2 {[%clk 0:01:26.2]}
30... Be3+ {[%clk 0:01:59.2]} 31. Kb1 {[%clk 0:01:23.9]} 31... Ne6 {[%clk
0:01:56.7]} 32. c3 {[%clk 0:01:22.6]} 32... b4 {[%clk 0:01:27.5]} 33. cxb4
{[%clk 0:01:20.4]} 33... Rd8 {[%clk 0:01:25.8]} 34. Be4 {[%clk 0:01:12.1]} 34...
axb4 {[%clk 0:01:25.3]} 35. h4 {[%clk 0:00:34.9]} 35... Rd4 {[%clk 0:00:55.3]}
36. Rg4 {[%clk 0:00:30.5]} 36... g6 {[%clk 0:00:51.9]} 37. b3 {[%clk 0:00:24.1]}
37... Kg7 {[%clk 0:00:50.4]} 38. Kb2 {[%clk 0:00:25]} 38... Kf6 {[%clk 0:00:48]}
39. a4 {[%clk 0:00:23.1]} 39... bxa3+ {[%clk 0:00:45]} 40. Kxa3 {[%clk 0:00:25]}
40... Rd7 {[%clk 0:00:41.3]} 41. b4 {[%clk 0:00:24.8]} 41... g5 {[%clk
0:00:29.6]} 42. hxg5+ {[%clk 0:00:25.2]} 42... Nxg5 {[%clk 0:00:30.3]} 43. Nc5
{[%clk 0:00:23.9]} 43... Rd1 {[%clk 0:00:11.8]} 44. Rg2 {[%clk 0:00:19.9]} 44...
h5 {[%clk 0:00:09.9]} 45. b5 {[%clk 0:00:19.3]} 45... Bxc5+ {[%clk 0:00:07.7]}
46. Kb3 {[%clk 0:00:20.2]} 46... Nxe4 {[%clk 0:00:07.8]} 47. fxe4 {[%clk
0:00:21.4]} 47... Rb1+ {[%clk 0:00:08.8]} 48. Kc4 {[%clk 0:00:22.3]} 48... Be3
{[%clk 0:00:10.5]} 49. Rh2 {[%clk 0:00:22.2]} 49... Ke5 {[%clk 0:00:11.2]} 50.
Rxh5+ {[%clk 0:00:23.2]} 50... Kxe4 {[%clk 0:00:12.8]} 51. Rh6 {[%clk
0:00:24.6]} 51... f3 {[%clk 0:00:13.8]} 52. Re6+ {[%clk 0:00:25.4]} 52... Kf4
{[%clk 0:00:15.1]} 53. Rf6+ {[%clk 0:00:26.8]} 53... Kg3 {[%clk 0:00:16.1]} 54.
Kd3 {[%clk 0:00:27.4]} 54... Bg1 {[%clk 0:00:13.1]} 55. Rg6+ {[%clk 0:00:28.3]}
55... Kh2 {[%clk 0:00:14.1]} 56. Rh6+ {[%clk 0:00:26.1]} 56... Kg2 {[%clk
0:00:15.1]} 57. Rg6+ {[%clk 0:00:27.5]} 57... Kf1 {[%clk 0:00:16.1]} 58. Rf6
{[%clk 0:00:26.8]} 58... f2 {[%clk 0:00:16.5]} 59. Ke3 {[%clk 0:00:27.8]} 59...
Rxb5 {[%clk 0:00:16.5]} 60. Ra6 {[%clk 0:00:26.5]} 60... Rb3+ {[%clk 0:00:17.3]}
61. Kd2 {[%clk 0:00:27.5]} 61... Kg2 {[%clk 0:00:18.5]} 62. Rg6+ {[%clk
0:00:28.8]} 62... Rg3 {[%clk 0:00:19.5]} 0-1

[Event "*** Titled Tuesday Blitz AM"]
[Site "Chess.com"]
[Date "2020.01.07"]
[Round "2"]
[White "Zq1"]
[Black "rasmussvane"]
[Result "0-1"]
[WhiteElo "2576"]
[BlackElo "2855"]
[TimeControl "180+2"]
[EndTime "9:24:53 PST"]
[Termination "rasmussvane won by resignation"]

1. d4 {[%clk 0:03:01.9]} 1... d5 {[%clk 0:03:00.7]} 2. c4 {[%clk 0:03:02.2]}
2... e6 {[%clk 0:03:01.9]} 3. Nc3 {[%clk 0:03:02.3]} 3... a6 {[%clk 0:03:03]} 4.
cxd5 {[%clk 0:03:01.8]} 4... exd5 {[%clk 0:03:04.9]} 5. Nf3 {[%clk 0:03:01.7]}
5... Nf6 {[%clk 0:03:05.3]} 6. Bg5 {[%clk 0:03:02.2]} 6... Be6 {[%clk
0:03:06.3]} 7. e3 {[%clk 0:03:03.2]} 7... Nbd7 {[%clk 0:03:07.6]} 8. Bd3 {[%clk
0:03:02.2]} 8... Bd6 {[%clk 0:03:09.1]} 9. O-O {[%clk 0:03:02.3]} 9... c6 {[%clk
0:03:10.6]} 10. Rb1 {[%clk 0:03:01.1]} 10... Qc7 {[%clk 0:03:10.1]} 11. Bh4
{[%clk 0:03:01.3]} 11... O-O {[%clk 0:03:11]} 12. Bg3 {[%clk 0:03:01.8]} 12...
Bxg3 {[%clk 0:03:11]} 13. hxg3 {[%clk 0:03:02.3]} 13... Bg4 {[%clk 0:03:08]} 14.
Qc2 {[%clk 0:03:00.4]} 14... Bh5 {[%clk 0:03:06.1]} 15. b4 {[%clk 0:03:00]}
15... Bg6 {[%clk 0:03:07]} 16. a4 {[%clk 0:02:58.9]} 16... Rfc8 {[%clk
0:03:07.1]} 17. Rfc1 {[%clk 0:02:58.1]} 17... Qd6 {[%clk 0:02:59.8]} 18. b5
{[%clk 0:02:37.2]} 18... axb5 {[%clk 0:02:28.3]} 19. axb5 {[%clk 0:02:35.2]}
19... cxb5 {[%clk 0:02:29.5]} 20. Bxg6 {[%clk 0:02:31.1]} 20... hxg6 {[%clk
0:02:29.9]} 21. Nxb5 {[%clk 0:02:27.1]} 21... Rxc2 {[%clk 0:02:26.7]} 22. Nxd6
{[%clk 0:02:27.7]} 22... Rxc1+ {[%clk 0:02:27.8]} 23. Rxc1 {[%clk 0:02:28.1]}
23... Ne4 {[%clk 0:01:54.9]} 24. Nxb7 {[%clk 0:01:50.6]} 24... Ra2 {[%clk
0:01:51.2]} 25. Nc5 {[%clk 0:01:49.9]} 25... Ndf6 {[%clk 0:01:33.7]} 26. Nxe4
{[%clk 0:01:49.5]} 26... Nxe4 {[%clk 0:01:35.6]} 27. Rf1 {[%clk 0:01:47.8]}
27... f6 {[%clk 0:01:34.9]} 28. g4 {[%clk 0:01:45.6]} 28... g5 {[%clk
0:01:33.7]} 29. g3 {[%clk 0:01:40.9]} 29... Kf7 {[%clk 0:01:33.8]} 30. Kg2
{[%clk 0:01:40.9]} 30... g6 {[%clk 0:01:22.6]} 31. Ng1 {[%clk 0:01:37.6]} 31...
Ke6 {[%clk 0:01:18.7]} 32. Nh3 {[%clk 0:01:37.5]} 32... Kd6 {[%clk 0:01:15.4]}
33. Rb1 {[%clk 0:01:34.4]} 33... f5 {[%clk 0:01:12.1]} 34. gxf5 {[%clk
0:01:33.6]} 34... g4 {[%clk 0:01:12.1]} 35. fxg6 {[%clk 0:01:12.1]} 35... gxh3+
{[%clk 0:01:11.2]} 36. Kxh3 {[%clk 0:01:13]} 36... Nxf2+ {[%clk 0:00:49.7]} 37.
Kh4 {[%clk 0:01:12.8]} 37... Ke7 {[%clk 0:00:51.1]} 38. Rb7+ {[%clk 0:00:57.8]}
38... Kf8 {[%clk 0:00:51.7]} 39. Kg5 {[%clk 0:00:25]} 39... Ne4+ {[%clk
0:00:52.1]} 40. Kf4 {[%clk 0:00:25.8]} 40... Ra6 {[%clk 0:00:30.9]} 41. Ke5
{[%clk 0:00:23.3]} 41... Rxg6 {[%clk 0:00:31]} 42. Kxd5 {[%clk 0:00:23.4]} 42...
Nf6+ {[%clk 0:00:25.7]} 43. Ke6 {[%clk 0:00:19.6]} 43... Ne8+ {[%clk 0:00:26.3]}
44. Kf5 {[%clk 0:00:19.9]} 44... Rxg3 {[%clk 0:00:27.2]} 45. Kf4 {[%clk
0:00:19.6]} 45... Rg6 {[%clk 0:00:24]} 46. e4 {[%clk 0:00:19.8]} 46... Rf6+
{[%clk 0:00:22]} 47. Ke5 {[%clk 0:00:19.6]} 47... Rh6 {[%clk 0:00:23.2]} 48. d5
{[%clk 0:00:19.9]} 48... Rh5+ {[%clk 0:00:24.2]} 49. Kf4 {[%clk 0:00:18.5]}
49... Nd6 {[%clk 0:00:24.6]} 50. Rb8+ {[%clk 0:00:18.8]} 50... Ke7 {[%clk
0:00:25.2]} 51. Rb4 {[%clk 0:00:19.9]} 51... Rh4+ {[%clk 0:00:23.6]} 52. Ke5
{[%clk 0:00:19.7]} 52... Nf7+ {[%clk 0:00:24.6]} 53. Kf5 {[%clk 0:00:20.7]}
53... Nd6+ {[%clk 0:00:25.6]} 54. Ke5 {[%clk 0:00:21.8]} 54... Rh1 {[%clk
0:00:25]} 55. Ra4 {[%clk 0:00:21.4]} 55... Nf7+ {[%clk 0:00:25.2]} 56. Kd4
{[%clk 0:00:20.6]} 56... Rd1+ {[%clk 0:00:26]} 57. Ke3 {[%clk 0:00:21.5]} 57...
Ne5 {[%clk 0:00:26.9]} 58. Ra7+ {[%clk 0:00:21.3]} 58... Kf6 {[%clk 0:00:27.4]}
59. Ra6+ {[%clk 0:00:22.5]} 59... Kg5 {[%clk 0:00:28.6]} 60. Re6 {[%clk
0:00:23.8]} 60... Ng4+ {[%clk 0:00:29.7]} 61. Ke2 {[%clk 0:00:23.1]} 61... Rd4
{[%clk 0:00:30.3]} 62. d6 {[%clk 0:00:23.3]} 62... Kf4 {[%clk 0:00:30.1]} 63.
Rg6 {[%clk 0:00:14.3]} 63... Ne5 {[%clk 0:00:29.1]} 64. Rh6 {[%clk 0:00:12]}
64... Rxe4+ {[%clk 0:00:27.6]} 65. Kf2 {[%clk 0:00:09.5]} 65... Ng4+ {[%clk
0:00:27.9]} 0-1

[Event "*** Titled Tuesday Blitz AM"]
[Site "Chess.com"]
[Date "2020.01.07"]
[Round "2"]
[White "OK97"]
[Black "vinniethepooh"]
[Result "0-1"]
[WhiteElo "2852"]
[BlackElo "2609"]
[TimeControl "180+2"]
[EndTime "9:24:59 PST"]
[Termination "vinniethepooh won by resignation"]

1. d4 {[%clk 0:03:01.9]} 1... d5 {[%clk 0:03:00.7]} 2. c4 {[%clk 0:03:02.7]}
2... c6 {[%clk 0:03:02]} 3. Nf3 {[%clk 0:03:03.9]} 3... Nf6 {[%clk 0:03:03.2]}
4. e3 {[%clk 0:03:05.6]} 4... Bf5 {[%clk 0:03:03.4]} 5. Nc3 {[%clk 0:03:05.9]}
5... e6 {[%clk 0:03:04.3]} 6. Nh4 {[%clk 0:03:07.5]} 6... Be4 {[%clk 0:03:05.1]}
7. f3 {[%clk 0:03:09]} 7... Bg6 {[%clk 0:03:05.6]} 8. Qb3 {[%clk 0:03:10.6]}
8... Qc7 {[%clk 0:03:06.3]} 9. Bd2 {[%clk 0:03:12.2]} 9... a6 {[%clk 0:03:06]}
10. c5 {[%clk 0:03:09.2]} 10... e5 {[%clk 0:02:54.7]} 11. O-O-O {[%clk
0:03:00.4]} 11... Nbd7 {[%clk 0:02:50.5]} 12. f4 {[%clk 0:02:52.2]} 12... e4
{[%clk 0:02:04.2]} 13. h3 {[%clk 0:02:41.2]} 13... h6 {[%clk 0:01:27.5]} 14.
Nxg6 {[%clk 0:02:42]} 14... fxg6 {[%clk 0:01:29.4]} 15. g4 {[%clk 0:02:40.1]}
15... Rb8 {[%clk 0:01:25.9]} 16. Na4 {[%clk 0:02:35.3]} 16... b6 {[%clk
0:01:18]} 17. cxb6 {[%clk 0:02:36.1]} 17... Nxb6 {[%clk 0:01:19.9]} 18. Ba5
{[%clk 0:02:26.3]} 18... Nfd7 {[%clk 0:01:21.4]} 19. Rh2 {[%clk 0:02:11.9]}
19... Qb7 {[%clk 0:00:55.9]} 20. Nxb6 {[%clk 0:02:08.7]} 20... Nxb6 {[%clk
0:00:57.8]} 21. Rc2 {[%clk 0:02:05.6]} 21... Bd6 {[%clk 0:00:56.6]} 22. Kb1
{[%clk 0:02:00.1]} 22... O-O {[%clk 0:00:57.3]} 23. Rdc1 {[%clk 0:02:01.4]}
23... Rfc8 {[%clk 0:00:58.7]} 24. h4 {[%clk 0:01:56.1]} 24... Be7 {[%clk
0:00:39.7]} 25. g5 {[%clk 0:01:54.6]} 25... hxg5 {[%clk 0:00:35.6]} 26. hxg5
{[%clk 0:01:54.9]} 26... Rc7 {[%clk 0:00:29.3]} 27. Bh3 {[%clk 0:01:34.5]} 27...
Nc4 {[%clk 0:00:20.4]} 28. Be6+ {[%clk 0:01:25.4]} 28... Kf8 {[%clk 0:00:20]}
29. Rh1 {[%clk 0:01:11.5]} 29... Bd8 {[%clk 0:00:20.8]} 30. Rh8+ {[%clk
0:00:58.1]} 30... Ke7 {[%clk 0:00:21.5]} 31. Rxc4 {[%clk 0:00:49.8]} 31... dxc4
{[%clk 0:00:13.8]} 32. Qa3+ {[%clk 0:00:43.8]} 32... Kxe6 {[%clk 0:00:14.4]} 33.
Bxc7 {[%clk 0:00:37.3]} 33... Bxc7 {[%clk 0:00:15.6]} 34. Rxb8 {[%clk 0:00:28]}
34... Bxb8 {[%clk 0:00:17.5]} 35. Qf8 {[%clk 0:00:25.7]} 35... Bd6 {[%clk
0:00:17.9]} 36. Qg8+ {[%clk 0:00:25.5]} 36... Kf5 {[%clk 0:00:15.8]} 37. Qxc4
{[%clk 0:00:23.5]} 37... Bxf4 {[%clk 0:00:09.8]} 38. exf4 {[%clk 0:00:18.2]}
38... Kxf4 {[%clk 0:00:11.7]} 39. Qf1+ {[%clk 0:00:17]} 39... Ke3 {[%clk
0:00:12.9]} 40. Qg1+ {[%clk 0:00:17.8]} 40... Kd3 {[%clk 0:00:14.2]} 41. Qd1+
{[%clk 0:00:19]} 41... Kc4 {[%clk 0:00:15.2]} 42. Kc2 {[%clk 0:00:17.8]} 42...
Kd5 {[%clk 0:00:13.5]} 43. Kc3 {[%clk 0:00:14.2]} 43... Qb5 {[%clk 0:00:11.1]}
44. b3 {[%clk 0:00:15.6]} 44... Qa5+ {[%clk 0:00:10.5]} 45. Kb2 {[%clk
0:00:16.9]} 45... Qb4 {[%clk 0:00:10.8]} 46. Qg4 {[%clk 0:00:12.3]} 46... Qxd4+
{[%clk 0:00:12.1]} 47. Kc2 {[%clk 0:00:13.8]} 47... Qf2+ {[%clk 0:00:12]} 48.
Kb1 {[%clk 0:00:09.6]} 48... e3 {[%clk 0:00:12.1]} 49. Qd7+ {[%clk 0:00:09.4]}
49... Ke4 {[%clk 0:00:13.7]} 50. Qe6+ {[%clk 0:00:10.6]} 50... Kd3 {[%clk
0:00:14.7]} 51. Qc4+ {[%clk 0:00:11.2]} 51... Kd2 {[%clk 0:00:16.2]} 52. Qc2+
{[%clk 0:00:08.4]} 52... Ke1 {[%clk 0:00:17.6]} 53. Qc1+ {[%clk 0:00:09.9]}
53... Ke2 {[%clk 0:00:19]} 54. Qc4+ {[%clk 0:00:11.1]} 54... Kf3 {[%clk
0:00:20]} 55. Qxc6+ {[%clk 0:00:12.3]} 55... Kg3 {[%clk 0:00:21.1]} 56. Qd6+
{[%clk 0:00:08.5]} 56... Kg2 {[%clk 0:00:22.3]} 57. Qd5+ {[%clk 0:00:09]} 57...
Kg1 {[%clk 0:00:23.5]} 58. Qd1+ {[%clk 0:00:02.4]} 58... Qf1 {[%clk 0:00:24.6]}
59. Kc1 {[%clk 0:00:03.9]} 59... e2 {[%clk 0:00:26.1]} 0-1

[Event "*** Titled Tuesday Blitz AM"]
[Site "Chess.com"]
[Date "2020.01.07"]
[Round "2"]
[White "albi1999"]
[Black "Rainbow2014"]
[Result "1-0"]
[WhiteElo "2520"]
[BlackElo "2264"]
[TimeControl "180+2"]
[EndTime "9:25:06 PST"]
[Termination "albi1999 won by resignation"]

1. e4 {[%clk 0:03:01.9]} 1... c5 {[%clk 0:00:47.3]} 2. Nf3 {[%clk 0:03:02.6]}
2... e6 {[%clk 0:00:47.9]} 3. g3 {[%clk 0:03:02.7]} 3... Nc6 {[%clk 0:00:48.4]}
4. Bg2 {[%clk 0:03:03.3]} 4... d6 {[%clk 0:00:47.6]} 5. O-O {[%clk 0:03:03.6]}
5... Nf6 {[%clk 0:00:47.9]} 6. Re1 {[%clk 0:03:04.8]} 6... Be7 {[%clk
0:00:48.4]} 7. c3 {[%clk 0:03:01.8]} 7... c4 {[%clk 0:00:48.2]} 8. Na3 {[%clk
0:02:55.8]} 8... Na5 {[%clk 0:00:46.1]} 9. Nxc4 {[%clk 0:02:53.9]} 9... Nxc4
{[%clk 0:00:46.9]} 10. Qa4+ {[%clk 0:02:55.3]} 10... Bd7 {[%clk 0:00:47.2]} 11.
Qxc4 {[%clk 0:02:55.6]} 11... O-O {[%clk 0:00:48.7]} 12. Qe2 {[%clk 0:02:54.5]}
12... a6 {[%clk 0:00:49.1]} 13. d3 {[%clk 0:02:55.6]} 13... b5 {[%clk
0:00:47.7]} 14. e5 {[%clk 0:02:57.1]} 14... Nd5 {[%clk 0:00:46.9]} 15. exd6
{[%clk 0:02:56.7]} 15... Bxd6 {[%clk 0:00:48.2]} 16. c4 {[%clk 0:02:55.9]} 16...
Nb6 {[%clk 0:00:46.9]} 17. b3 {[%clk 0:02:54.9]} 17... Rc8 {[%clk 0:00:47.1]}
18. Bb2 {[%clk 0:02:55.8]} 18... Bc6 {[%clk 0:00:47.1]} 19. Rac1 {[%clk
0:02:54.3]} 19... Bb4 {[%clk 0:00:47.3]} 20. Red1 {[%clk 0:02:55.2]} 20... Qe7
{[%clk 0:00:41.4]} 21. Qc2 {[%clk 0:02:32.9]} 21... Rfd8 {[%clk 0:00:32.2]} 22.
Qb1 {[%clk 0:02:28.7]} 22... Qb7 {[%clk 0:00:27.8]} 23. Nh4 {[%clk 0:02:29.4]}
23... Bxg2 {[%clk 0:00:27.9]} 24. Nxg2 {[%clk 0:02:31.3]} 24... bxc4 {[%clk
0:00:27.8]} 25. dxc4 {[%clk 0:02:31.4]} 25... Nd7 {[%clk 0:00:28.3]} 26. Qa1
{[%clk 0:02:29.7]} 26... f6 {[%clk 0:00:28.7]} 27. Nf4 {[%clk 0:02:30]} 27...
Nf8 {[%clk 0:00:27]} 28. Bc3 {[%clk 0:02:28.8]} 28... Bc5 {[%clk 0:00:26.8]} 29.
Bd4 {[%clk 0:02:21.2]} 29... Rxd4 {[%clk 0:00:22.2]} 30. Rxd4 {[%clk 0:02:23.1]}
30... e5 {[%clk 0:00:23.3]} 31. Rd5 {[%clk 0:02:12.7]} 31... exf4 {[%clk
0:00:23.1]} 32. Rcd1 {[%clk 0:02:14]} 32... fxg3 {[%clk 0:00:22.3]} 33. hxg3
{[%clk 0:02:15.9]} 33... Qc7 {[%clk 0:00:23.3]} 34. Qc3 {[%clk 0:02:15.4]} 34...
Qf7 {[%clk 0:00:18.5]} 35. Qa5 {[%clk 0:02:11.2]} 35... Qc7 {[%clk 0:00:17.2]}
36. Qxc7 {[%clk 0:02:08.2]} 36... Rxc7 {[%clk 0:00:19.1]} 37. Kg2 {[%clk
0:02:08.4]} 37... Kf7 {[%clk 0:00:20]} 38. f3 {[%clk 0:02:07.2]} 38... a5 {[%clk
0:00:21.2]} 39. Rd8 {[%clk 0:02:06.7]} 39... Ke7 {[%clk 0:00:22]} 40. Ra8 {[%clk
0:02:07.5]} 40... Bb4 {[%clk 0:00:22.5]} 41. a3 {[%clk 0:02:07.1]} 41... Bxa3
{[%clk 0:00:22.7]} 42. Rxa5 {[%clk 0:02:08.5]} 42... Bc5 {[%clk 0:00:23.4]} 43.
Rb5 {[%clk 0:02:08.8]} 43... Ne6 {[%clk 0:00:23]} 44. b4 {[%clk 0:02:10.1]}
44... Bd4 {[%clk 0:00:18.6]} 45. c5 {[%clk 0:02:10.1]} 45... h5 {[%clk
0:00:18.7]} 46. Rb8 {[%clk 0:02:05.2]} 46... g5 {[%clk 0:00:18.1]} 47. Rh8
{[%clk 0:02:04.3]} 47... h4 {[%clk 0:00:19]} 48. Rh7+ {[%clk 0:02:05]} 48... Kd8
{[%clk 0:00:17.7]} 49. Rxc7 {[%clk 0:02:04.6]} 49... Kxc7 {[%clk 0:00:17.6]} 50.
gxh4 {[%clk 0:02:02.1]} 50... gxh4 {[%clk 0:00:19.5]} 51. Kh3 {[%clk 0:02:02.1]}
51... Ng5+ {[%clk 0:00:20]} 52. Kg4 {[%clk 0:01:59.4]} 52... Bf2 {[%clk
0:00:19.9]} 53. f4 {[%clk 0:02:00.4]} 53... Ne4 {[%clk 0:00:19.4]} 54. Kf3
{[%clk 0:01:58.8]} 54... f5 {[%clk 0:00:18.1]} 55. Rd5 {[%clk 0:01:59.9]} 55...
h3 {[%clk 0:00:18]} 56. Rxf5 {[%clk 0:01:56.2]} 56... h2 {[%clk 0:00:19.2]} 57.
Rh5 {[%clk 0:01:53.2]} 57... Nf6 {[%clk 0:00:18.2]} 58. Rxh2 {[%clk 0:01:51.6]}
58... Be1 {[%clk 0:00:19.7]} 59. b5 {[%clk 0:01:45.2]} 59... Bb4 {[%clk
0:00:20.8]} 60. b6+ {[%clk 0:01:35]} 60... Kb7 {[%clk 0:00:20.8]} 61. Rh6 {[%clk
0:01:31.3]} 61... Nd5 {[%clk 0:00:19.9]} 62. Ke4 {[%clk 0:01:25.6]} 62... Nc3+
{[%clk 0:00:19.2]} 63. Kd3 {[%clk 0:01:26.6]} 63... Na4 {[%clk 0:00:19.3]} 64.
Kc4 {[%clk 0:01:23.2]} 64... Bxc5 {[%clk 0:00:19.5]} 65. Kb5 {[%clk 0:01:23]}
65... Bxb6 {[%clk 0:00:20.5]} 66. Kxa4 {[%clk 0:01:20.6]} 66... Kc7 {[%clk
0:00:22.1]} 67. Re6 {[%clk 0:01:17.9]} 67... Bd4 {[%clk 0:00:21.7]} 68. Kb5
{[%clk 0:01:17.7]} 68... Kd7 {[%clk 0:00:23]} 69. f5 {[%clk 0:01:19]} 69... Ba1
{[%clk 0:00:23.4]} 70. Kc4 {[%clk 0:01:20.3]} 70... Bb2 {[%clk 0:00:23.7]} 71.
Kd5 {[%clk 0:01:21.8]} 71... Bc3 {[%clk 0:00:24.6]} 72. Ke4 {[%clk 0:01:23.3]}
72... Ba1 {[%clk 0:00:24]} 73. Kf3 {[%clk 0:01:25.2]} 73... Bb2 {[%clk
0:00:22.2]} 74. Kg4 {[%clk 0:01:26.6]} 74... Bc3 {[%clk 0:00:23]} 75. Kg5 {[%clk
0:01:28]} 75... Bb2 {[%clk 0:00:23.8]} 76. Kg6 {[%clk 0:01:29.5]} 76... Bc3
{[%clk 0:00:24.7]} 77. Re2 {[%clk 0:01:30.3]} 77... Kd8 {[%clk 0:00:24.5]} 78.
f6 {[%clk 0:01:31.3]} 1-0